fUSD/lending_fUSD_20240116
["ID","MTS","AMOUNT","RATE_DAILY","PERIOD"]
[311744288,1705373738300,305.96870914,0.00021915,2]
[311744289,1705373738418,150.0,0.0002197,2]
[311744290,1705373738474,150.0,0.00022062,2]
[311744291,1705373738683,245.22630715,0.00022004,2]
[311744292,1705373738715,150.0,0.00021975,2]
[311744293,1705373738752,150.0,0.0002199,2]
[311744294,1705373738797,150.0,0.00021898,2]
[311744295,1705373742996,150.0,0.00021921,2]
[311744296,1705373743074,150.0,0.00021953,2]
[311744297,1705373743257,150.0,0.00021902,2]
[311744298,1705373743386,150.0,0.00022095,2]
[311744299,1705373743414,150.0,0.00022025,2]
[311744300,1705373743491,150.0,0.00021928,2]
[311744301,1705373743519,150.0,0.00021984,2]
[311744302,1705373743551,150.0,0.00022089,2]
[311744303,1705373743580,150.0,0.0002206,2]
[311744304,1705373743631,150.0,0.00021977,2]
[311744305,1705373743707,150.0,0.00022008,2]
[311744306,1705373743784,150.0,0.00021991,2]
[311744307,1705373743826,150.0,0.00022003,2]
[311744308,1705373743882,150.0,0.0002203,2]
[311744309,1705373743915,150.0,0.00021916,2]
[311744310,1705373743948,150.0,0.0002193,2]
[311744311,1705373743999,150.0,0.00022054,2]
[311744312,1705373744043,150.0,0.00022047,2]
[311744313,1705373744093,150.0,0.00021928,2]
[311744314,1705373744123,150.0,0.00022013,2]
[311744315,1705373761881,23784.81759269,0.00022074,2]
[311744316,1705373802930,150.0,0.0002195,2]
[311744317,1705373802962,150.0,0.000219,2]
[311744318,1705373803000,150.0,0.00021949,2]
[311744319,1705373803048,150.0,0.0002201,2]
[311744320,1705373803086,150.0,0.00021928,2]
[311744321,1705373803114,150.0,0.00021974,2]
[311744322,1705373803192,517.37,0.00021162,2]
[311744323,1705373828393,169.8873037,0.00022074,2]
[311744324,1705373833663,84577.148,0.00022063,2]
[311744325,1705373845742,250.0,0.00022065,2]
[311744326,1705373858609,150.0,0.00021912,2]
[311744327,1705373858653,1500.0,0.0002189,2]
[311744328,1705373858810,1500.0,0.00021951,2]
[311744329,1705373863025,150.0,0.00022088,2]
[311744330,1705373863116,150.0,0.0002202,2]
[311744331,1705373863171,150.0,0.00021921,2]
[311744332,1705373881725,150.0,0.00022015,2]
[311744333,1705373881778,150.0,0.00021913,2]
[311744334,1705373881832,150.0,0.00021925,2]
[311744337,1705373911296,201.59715363,0.00022066,2]
[311744338,1705373917876,1500.0,0.00022099,2]
[311744339,1705373917934,1500.0,0.00021929,2]
[311744340,1705373918454,1500.0,0.00022003,2]
[311744341,1705373918489,300.0,0.00021921,2]
[311744342,1705373918521,1500.0,0.00021895,2]
[311744343,1705373918553,300.0,0.00022062,2]
[311744344,1705373918605,301.9655587,0.0002197,2]
[311744345,1705373918657,1500.0,0.00022092,2]
[311744346,1705373918715,1500.0,0.00021996,2]
[311744347,1705373918771,1500.0,0.00022016,2]
[311744348,1705373918831,1500.0,0.00022009,2]
[311744349,1705373918884,1500.0,0.00021927,2]
[311744350,1705373918935,1529.02981385,0.00022011,2]
[311744351,1705373923382,150.0,0.00022056,2]
[311744352,1705373923695,150.0,0.00022037,2]
[311744353,1705373923723,150.0,0.00021896,2]
[311744354,1705373923770,150.0,0.00021977,2]
[311744355,1705373923798,150.0,0.00021938,2]
[311744356,1705373923843,150.0,0.00021901,2]
[311744357,1705373923905,150.0,0.00021965,2]
[311744358,1705373923933,150.0,0.00021984,2]
[311744359,1705373923975,150.0,0.00021984,2]
[311744360,1705373924004,150.0,0.00021937,2]
[311744361,1705373924035,150.0,0.0002199,2]
[311744362,1705373924072,150.0,0.00021937,2]
[311744363,1705373924100,150.0,0.00021912,2]
[311744364,1705373924137,150.0,0.00021989,2]
[311744365,1705373924172,150.0,0.00022041,2]
[311744366,1705373924200,150.0,0.00022094,2]
[311744367,1705373924233,150.0,0.00022016,2]
[311744368,1705373924284,150.0,0.00022065,2]
[311744369,1705373924314,150.0,0.00021975,2]
[311744370,1705373924344,150.0,0.00021948,2]
[311744371,1705373924380,150.0,0.00021908,2]
[311744372,1705373924414,150.0,0.00021978,2]
[311744373,1705373924462,150.0,0.0002202,2]
[311744374,1705373924490,150.0,0.00022058,2]
[311744375,1705373924538,150.0,0.00022027,2]
[311744376,1705373924573,150.0,0.00022075,2]
[311744377,1705373924606,150.0,0.00021957,2]
[311744378,1705373924641,150.0,0.00021965,2]
[311744379,1705373924678,150.0,0.00021907,2]
[311744380,1705373924710,150.0,0.00022095,2]
[311744381,1705373924755,150.0,0.0002205,2]
[311744382,1705373924791,150.0,0.00021986,2]
[311744383,1705373924820,150.0,0.0002209,2]
[311744384,1705373924849,150.0,0.00022064,2]
[311744385,1705373924883,150.0,0.00021905,2]
[311744386,1705373924935,150.0,0.00022001,2]
[311744387,1705373924969,150.0,0.00022079,2]
[311744388,1705373930891,150.0,0.00022003,2]
[311744389,1705373931450,525.02684862,0.00021904,2]
[311744390,1705373934011,-150.0,0.00022101,2]
[311744391,1705373941019,178.78,0.00021359,2]
[311744392,1705373957618,170.23,0.00021146,2]
[311744393,1705373958387,491.7,0.00021146,2]
[311744394,1705373968423,-260.62837074,0.00022101,2]
[311744395,1705373968874,-250.0,0.00022101,2]
[311744396,1705373969320,-150.0,0.00022101,2]
[311744397,1705373969802,-150.0,0.00022101,2]
[311744398,1705373970388,-150.0,0.00022101,2]
[311744399,1705373970822,-150.0,0.00022101,2]
[311744400,1705373971290,-150.0,0.00022101,2]
[311744401,1705373971841,-150.0,0.00022101,2]
[311744402,1705373972300,-150.0,0.00022101,2]
[311744403,1705373972754,-150.0,0.00022101,2]
[311744404,1705373973338,-150.0,0.00022101,2]
[311744405,1705373973944,-150.0,0.00022101,2]
[311744406,1705373974411,-150.0,0.00022101,2]
[311744407,1705373975297,-150.0,0.00022101,2]
[311744408,1705373975805,-150.0,0.00022101,2]
[311744409,1705373976364,-150.0,0.00022101,2]
[311744410,1705373976885,-150.0,0.00022101,2]
[311744411,1705373977785,-150.0,0.00022101,2]
[311744412,1705373978398,-150.0,0.00022101,2]
[311744413,1705373982381,170.00428549,0.00022072,2]
[311744414,1705373984003,250.0,0.00022065,2]
[311744415,1705373990419,750.0,0.00022065,2]
[311744416,1705373995031,750.0,0.00022063,2]
[311744417,1705374001081,880.9817,0.00022063,2]
[311744418,1705374036353,150.39,0.00021303,2]
[311744419,1705374036585,150.39,0.00021462,2]
[311744420,1705374036806,150.39,0.0002162,2]
[311744421,1705374037020,150.39,0.00021779,2]
[311744422,1705374037228,150.39,0.00021937,2]
[311744423,1705374037468,150.39,0.00022096,2]
[311744424,1705374042914,150.0,0.00022099,2]
[311744425,1705374042957,150.0,0.00021956,2]
[311744426,1705374056618,1010.6283,0.00022065,2]
[311744427,1705374074095,151.38,0.00021145,2]
[311744428,1705374083769,150.0,0.00022062,2]
[311744429,1705374086520,7641.32,0.00021145,2]
[311744430,1705374108894,250.0,0.00021145,2]
[311744431,1705374121784,1000.0,0.000219,2]
[311744432,1705374122052,250.0,0.00022064,2]
[311744433,1705374162854,293.8,0.00021145,2]
[311744434,1705374168977,6547.14,0.00021144,2]
[311744435,1705374199315,800.0,0.00021996,2]
[311744438,1705374218443,300.0,0.0002208,2]
[311744439,1705374245079,250.0,0.00022064,2]
[311744440,1705374286443,586.1,0.00021145,2]
[311744441,1705374305392,250.0,0.00021918,2]
[311744443,1705374343706,150.0,0.00022061,2]
[311744444,1705374393215,250.0,0.00022064,2]
[311744445,1705374398239,150.0,0.00022072,2]
[311744446,1705374403709,150.0,0.00022,2]
[311744447,1705374403739,150.0,0.00022075,2]
[311744448,1705374428539,159.88,0.00021357,2]
[311744449,1705374437897,481.81,0.00021148,2]
[311744450,1705374463287,150.0,0.00022015,2]
[311744451,1705374463446,150.0,0.00021946,2]
[311744452,1705374497252,458.06550699,0.00021164,2]
[311744453,1705374512629,405.27605708,0.0002206,2]
[311744454,1705374518366,150.0,0.00022031,2]
[311744455,1705374518403,150.0,0.00021927,2]
[311744456,1705374522971,150.0,0.00022043,2]
[311744457,1705374536697,250.0,0.00022064,2]
[311744458,1705374544354,152.27,0.0002131,2]
[311744459,1705374544550,152.27,0.00021865,2]
[311744460,1705374569475,468.63227857,0.000221,2]
[311744461,1705374574480,468.63227857,0.000221,2]
[311744462,1705374577841,1500.0,0.0002199,2]
[311744463,1705374583306,150.0,0.00022079,2]
[311744464,1705374583450,150.0,0.000219,2]
[311744465,1705374583481,150.0,0.00021902,2]
[311744466,1705374583510,150.0,0.00022089,2]
[311744467,1705374583540,150.0,0.00021905,2]
[311744468,1705374583569,150.0,0.00021922,2]
[311744469,1705374583603,150.0,0.00022046,2]
[311744470,1705374583658,150.0,0.00021987,2]
[311744471,1705374583686,150.0,0.00021897,2]
[311744472,1705374583721,150.0,0.00022019,2]
[311744473,1705374583754,150.0,0.00021909,2]
[311744474,1705374583784,150.0,0.00022079,2]
[311744475,1705374583826,150.0,0.0002189,2]
[311744476,1705374583873,150.0,0.00022039,2]
[311744477,1705374618909,156.27,0.0002116,2]
[311744478,1705374631794,-797.664363,0.00022101,2]
[311744479,1705374631805,-447.61732339,0.00022102,2]
[311744480,1705374631817,-2582.04217206,0.00022102,2]
[311744481,1705374631828,-1186.83409097,0.00022102,2]
[311744482,1705374631851,-1476.98074252,0.00022102,2]
[311744483,1705374631861,-150.0,0.00022112,2]
[311744484,1705374631870,-150.0,0.00022117,2]
[311744485,1705374631880,-150.0,0.00022119,2]
[311744486,1705374631889,-150.0,0.00022119,2]
[311744487,1705374631899,-4402.35,0.0002212,2]
[311744488,1705374631908,-300.0,0.0002212,2]
[311744489,1705374631918,-150.0,0.0002212,2]
[311744490,1705374631927,-481.81,0.00022126,2]
[311744491,1705374631937,-455.25,0.00022128,2]
[311744492,1705374631946,-150.0,0.00022132,2]
[311744493,1705374631955,-150.0,0.00022133,2]
[311744494,1705374631965,-150.99,0.00022133,2]
[311744495,1705374631974,-150.0,0.00022138,2]
[311744496,1705374631983,-150.0,0.00022141,2]
[311744497,1705374631994,-592.38477058,0.00022148,2]
[311744498,1705374632004,-1510.65544807,0.00022148,2]
[311744499,1705374632013,-9820.98587235,0.00022149,2]
[311744500,1705374632027,-13963.83172027,0.00022149,2]
[311744501,1705374632036,-150.0,0.0002215,2]
[311744502,1705374632050,-168.41380749,0.00022153,2]
[311744503,1705374632059,-361.45556358,0.00022158,2]
[311744504,1705374632069,-2777.1,0.00022158,2]
[311744505,1705374632079,-675.13,0.00022158,2]
[311744506,1705374632089,-971.91,0.00022158,2]
[311744507,1705374632099,-600.55,0.00022158,2]
[311744508,1705374632109,-4062.66700841,0.00022158,2]
[311744509,1705374632122,-572.78766273,0.00022158,2]
[311744510,1705374632134,-117.88532886,0.00022158,2]
[311744511,1705374632144,-1300.49,0.00022158,2]
[311744512,1705374632154,-348.51541036,0.00022158,2]
[311744513,1705374632167,-1151.48458964,0.00022158,2]
[311744514,1705374632177,-554.42521708,0.00022158,2]
[311744517,1705374632190,-469.13636334,0.00022158,2]
[311744519,1705374632204,-587.33841958,0.00022158,2]
[311744521,1705374632214,-582.93945843,0.00022158,2]
[311744523,1705374632227,-243.73054157,0.00022158,2]
[311744525,1705374632236,-1325.09300752,0.00022158,2]
[311744526,1705374632249,-147.56699248,0.00022158,2]
[311744527,1705374632260,-759.23,0.00022158,2]
[311744528,1705374632271,-1896.81,0.00022158,2]
[311744529,1705374632282,-580.88,0.00022158,2]
[311744530,1705374632293,-834.97,0.00022158,2]
[311744531,1705374632303,-500.0,0.00022158,5]
[311744532,1705374632314,-3571.95,0.00022158,2]
[311744533,1705374632325,-1736.05,0.00022158,2]
[311744534,1705374632336,-737.59,0.00022158,2]
[311744535,1705374632346,-2762.84,0.00022158,2]
[311744536,1705374632356,-2697.58853126,0.00022158,2]
[311744537,1705374632403,-1067.034,0.00022158,2]
[311744538,1705374632416,-885.4525,0.00022158,2]
[311744539,1705374632429,-938.959998,0.00022158,2]
[311744540,1705374632462,-893.71670212,0.00022158,2]
[311744541,1705374632474,-10698.95237026,0.00022158,2]
[311744542,1705374632495,-2182.27589836,0.00022158,2]
[311744543,1705374632504,-500.0,0.00022158,2]
[311744544,1705374632516,-500.0,0.00022158,2]
[311744545,1705374632528,-1430.63,0.00022158,2]
[311744546,1705374632538,-674.09996098,0.00022158,2]
[311744547,1705374632550,-450.037073,0.00022158,2]
[311744548,1705374632563,-429.59296602,0.00022158,2]
[311744549,1705374632577,-1076.86945007,0.00022158,2]
[311744550,1705374632595,-482.20653933,0.00022158,2]
[311744551,1705374632607,-1922.86375946,0.00022158,2]
[311744552,1705374632619,-599.51586882,0.00022158,2]
[311744553,1705374632663,-1570.05409755,0.00022158,2]
[311744554,1705374632675,-866.85218717,0.00022158,2]
[311744555,1705374632689,-624.0380976,0.00022158,2]
[311744556,1705374632700,-108.65433302,0.00022158,2]
[311744557,1705374632712,-363.36373079,0.00022158,2]
[311744558,1705374632725,-478.84193619,0.00022158,2]
[311744559,1705374632734,-500.0,0.00022158,2]
[311744560,1705374632745,-11074.17,0.00022158,2]
[311744561,1705374632755,-667.18,0.00022158,2]
[311744562,1705374632765,-984.76,0.00022158,2]
[311744563,1705374632775,-579.17,0.00022158,2]
[311744564,1705374632787,-1020.16,0.00022158,2]
[311744565,1705374632796,-2523.6,0.00022158,2]
[311744566,1705374632806,-1258.9,0.00022158,2]
[311744567,1705374632816,-1809.85,0.00022158,2]
[311744568,1705374632825,-1664.86,0.00022158,2]
[311744569,1705374632835,-11478.92,0.00022158,2]
[311744570,1705374632845,-566.87,0.00022158,2]
[311744571,1705374632856,-1439.81,0.00022158,2]
[311744572,1705374632867,-1101.88,0.00022158,2]
[311744573,1705374632877,-1125.23,0.00022158,2]
[311744574,1705374632887,-684.93,0.00022158,2]
[311744575,1705374632897,-1163.66,0.00022158,2]
[311744576,1705374632907,-875.72,0.00022158,2]
[311744577,1705374632917,-500.0,0.00022158,2]
[311744578,1705374632931,-6259.22,0.00022158,2]
[311744579,1705374632942,-1333.46,0.00022158,2]
[311744580,1705374632952,-825.96,0.00022158,2]
[311744581,1705374632963,-1197.15,0.00022158,2]
[311744582,1705374632974,-6484.8737884,0.00022159,2]
[311744583,1705374632985,-99692.0,0.00022159,2]
[311744584,1705374632995,-80854.9399999,0.00022159,2]
[311744585,1705374633006,-1885.90926952,0.00022159,2]
[311744621,1705374638556,-641.115,0.00022158,2]
[311744624,1705374638577,-1170.265,0.00022158,2]
[311744625,1705374638586,-623.64,0.00022158,2]
[311744627,1705374638596,-20156.86261563,0.00022159,2]
[311744630,1705374638612,-1030.73095575,0.00022159,2]
[311744632,1705374638621,-500.0,0.0002216,2]
[311744634,1705374638631,-745.86,0.0002216,2]
[311744635,1705374638640,-500.0,0.0002216,2]
[311744637,1705374638649,-590.19,0.0002216,2]
[311744639,1705374638658,-500.0,0.0002216,2]
[311744641,1705374638668,-930.05,0.0002216,2]
[311744642,1705374638677,-500.0,0.0002216,2]
[311744644,1705374638686,-791.41,0.0002216,2]
[311744646,1705374638695,-500.0,0.0002216,2]
[311744648,1705374638704,-502.89,0.0002216,2]
[311744650,1705374638714,-500.0,0.0002216,2]
[311744652,1705374638723,-582.41,0.0002216,2]
[311744653,1705374638732,-500.0,0.0002216,2]
[311744655,1705374638741,-500.0,0.0002216,2]
[311744657,1705374638751,-605.41,0.0002216,2]
[311744659,1705374638760,-841.87,0.0002216,2]
[311744661,1705374638769,-557.3,0.0002216,2]
[311744663,1705374638778,-528.34,0.0002216,2]
[311744664,1705374638788,-500.0,0.0002216,2]
[311744666,1705374638798,-500.0,0.0002216,2]
[311744668,1705374638807,-500.0,0.0002216,2]
[311744670,1705374638817,-500.0,0.0002216,2]
[311744671,1705374638826,-538.56,0.0002216,2]
[311744673,1705374638836,-594.73,0.0002216,2]
[311744675,1705374638846,-500.0,0.0002216,2]
[311744677,1705374638855,-624.14,0.0002216,2]
[311744679,1705374638864,-500.0,0.0002216,2]
[311744681,1705374638873,-577.61,0.0002216,2]
[311744683,1705374638882,-500.0,0.0002216,2]
[311744685,1705374638892,-500.0,0.0002216,2]
[311744687,1705374638901,-575.10006266,0.0002216,2]
[311744688,1705374638910,-500.0,0.0002216,2]
[311744690,1705374638919,-500.0,0.0002216,2]
[311744692,1705374638929,-500.0,0.0002216,2]
[311744694,1705374638938,-500.0,0.0002216,2]
[311744696,1705374638948,-628.57,0.0002216,2]
[311744698,1705374638957,-537.83,0.0002216,2]
[311744700,1705374638966,-500.0,0.0002216,2]
[311744701,1705374638975,-417.60440815,0.0002216,2]
[311744703,1705374638985,-500.0,0.0002216,2]
[311744705,1705374638994,-692.1,0.0002216,2]
[311744707,1705374639003,-177.54581488,0.0002216,2]
[311744709,1705374639012,-625.21,0.0002216,2]
[311744711,1705374639021,-500.0,0.0002216,2]
[311744713,1705374639030,-784.14,0.0002216,2]
[311744715,1705374639039,-500.0,0.0002216,2]
[311744716,1705374639048,-500.0,0.0002216,2]
[311744718,1705374639057,-605.61,0.0002216,2]
[311744720,1705374639067,-521.86,0.0002216,2]
[311744722,1705374639077,-225.85166955,0.0002216,2]
[311744724,1705374639086,-540.27,0.0002216,2]
[311744726,1705374639096,-579.95,0.0002216,2]
[311744728,1705374639105,-500.0,0.0002216,2]
[311744730,1705374639116,-500.0,0.0002216,2]
[311744731,1705374639125,-642.48,0.0002216,2]
[311744733,1705374639135,-500.0,0.0002216,2]
[311744735,1705374639144,-500.0,0.0002216,2]
[311744737,1705374639153,-500.0,0.0002216,2]
[311744738,1705374639162,-500.0,0.0002216,2]
[311744740,1705374639172,-652.41,0.0002216,2]
[311744742,1705374639181,-208.8,0.0002216,2]
[311744744,1705374639195,-567.7,0.0002216,2]
[311744746,1705374639204,-641.65,0.0002216,2]
[311744748,1705374639213,-766.07,0.0002216,2]
[311744750,1705374639222,-500.0,0.0002216,2]
[311744752,1705374639232,-500.0,0.0002216,2]
[311744753,1705374639243,-500.0,0.0002216,2]
[311744755,1705374639254,-500.0,0.0002216,2]
[311744757,1705374639264,-500.0,0.0002216,2]
[311744759,1705374639274,-500.0,0.0002216,2]
[311744761,1705374639283,-164.39687222,0.00022161,2]
[311744763,1705374639293,-185.11529179,0.00022161,2]
[311744765,1705374639302,-4402.91314051,0.00022161,2]
[311744766,1705374639311,-155.36887452,0.00022161,2]
[311744768,1705374639320,-183.20546137,0.00022161,2]
[311744770,1705374639329,-500.0,0.00022161,2]
[311744772,1705374639337,-701.19,0.00022161,2]
[311744774,1705374639347,-1424.45,0.00022161,2]
[311744776,1705374639356,-626.71926077,0.00022162,2]
[311744778,1705374639366,-500.0,0.00022162,2]
[311744779,1705374639375,-500.0,0.00022162,2]
[311744780,1705374639384,-500.0,0.00022162,2]
[311744781,1705374639393,-647.36,0.00022162,2]
[311744782,1705374639403,-500.0,0.00022162,2]
[311744783,1705374639412,-500.0,0.00022162,2]
[311744784,1705374639421,-500.0,0.00022162,2]
[311744785,1705374639430,-583.78,0.00022162,2]
[311744786,1705374639440,-636.91,0.00022162,2]
[311744787,1705374639449,-219.58226308,0.00022162,2]
[311744788,1705374639458,-500.0,0.00022162,2]
[311744789,1705374639467,-500.0,0.00022162,2]
[311744790,1705374639476,-500.0,0.00022162,2]
[311744791,1705374639485,-500.0,0.00022162,2]
[311744793,1705374639493,-500.0,0.00022162,2]
[311744795,1705374639502,-500.0,0.00022162,2]
[311744797,1705374639512,-500.0,0.00022162,2]
[311744799,1705374639521,-500.0,0.00022162,2]
[311744801,1705374639531,-500.0,0.00022162,2]
[311744803,1705374639541,-500.0,0.00022162,2]
[311744805,1705374639550,-500.0,0.00022162,2]
[311744807,1705374639559,-737.6,0.00022162,2]
[311744809,1705374639568,-500.0,0.00022162,2]
[311744811,1705374639577,-500.0,0.00022162,2]
[311744813,1705374639586,-178.14972321,0.00022162,2]
[311744815,1705374639596,-500.0,0.00022162,2]
[311744817,1705374639605,-646.27,0.00022162,2]
[311744819,1705374639614,-500.0,0.00022162,2]
[311744821,1705374639623,-500.0,0.00022162,2]
[311744823,1705374639632,-906.04,0.00022162,2]
[311744825,1705374639642,-591.5,0.00022162,2]
[311744827,1705374639651,-500.0,0.00022162,2]
[311744829,1705374639660,-635.82,0.00022162,2]
[311744832,1705374639670,-500.0,0.00022162,2]
[311744834,1705374639679,-500.0,0.00022162,2]
[311744836,1705374639688,-500.0,0.00022162,2]
[311744838,1705374639697,-500.0,0.00022162,2]
[311744840,1705374639706,-500.0,0.00022162,2]
[311744842,1705374639716,-500.0,0.00022162,2]
[311744844,1705374639726,-518.0,0.00022162,2]
[311744846,1705374639735,-1087.14,0.00022162,2]
[311744848,1705374639745,-575.01,0.00022162,2]
[311744850,1705374639754,-500.0,0.00022162,2]
[311744852,1705374639763,-500.0,0.00022162,2]
[311744854,1705374639772,-704.21,0.00022162,2]
[311744856,1705374639782,-500.0,0.00022162,2]
[311744858,1705374639792,-668.39,0.00022162,2]
[311744860,1705374639801,-574.45,0.00022162,2]
[311744862,1705374639810,-500.0,0.00022162,2]
[311744864,1705374639818,-500.0,0.00022162,2]
[311744866,1705374639827,-500.0,0.00022162,2]
[311744868,1705374639837,-500.0,0.00022162,2]
[311744870,1705374639846,-500.0,0.00022162,2]
[311744872,1705374639855,-500.0,0.00022162,2]
[311744874,1705374639863,-543.53,0.00022162,2]
[311744876,1705374639873,-500.0,0.00022162,2]
[311744878,1705374639882,-500.0,0.00022162,2]
[311744880,1705374639891,-500.0,0.00022162,2]
[311744882,1705374639900,-500.0,0.00022162,2]
[311744884,1705374639909,-500.0,0.00022162,2]
[311744886,1705374639918,-584.38,0.00022162,2]
[311744888,1705374639927,-500.0,0.00022162,2]
[311744890,1705374639937,-514.54,0.00022162,2]
[311744892,1705374639946,-500.0,0.00022162,2]
[311744894,1705374639955,-2185.13,0.00022162,2]
[311744896,1705374639964,-500.0,0.00022162,2]
[311744898,1705374639973,-500.0,0.00022162,2]
[311744900,1705374639982,-500.0,0.00022162,2]
[311744902,1705374639991,-3020.1,0.00022162,2]
[311744904,1705374640001,-505.73,0.00022162,2]
[311744906,1705374640011,-500.0,0.00022162,2]
[311744908,1705374640020,-500.0,0.00022162,2]
[311744910,1705374640029,-7944.83,0.00022162,2]
[311744912,1705374640039,-2819.84,0.00022162,2]
[311744914,1705374640048,-564.92,0.00022162,2]
[311744916,1705374640057,-500.0,0.00022162,2]
[311744918,1705374640066,-500.0,0.00022162,2]
[311744920,1705374640075,-500.0,0.00022162,2]
[311744922,1705374640084,-500.0,0.00022162,2]
[311744924,1705374640092,-571.16,0.00022162,2]
[311744926,1705374640102,-2167.37,0.00022162,2]
[311744958,1705374640388,-500.0,0.00022162,2]
[311744960,1705374640397,-528.05,0.00022162,2]
[311744962,1705374640407,-500.0,0.00022162,2]
[311744964,1705374640416,-1375.65,0.00022162,2]
[311744966,1705374640426,-500.0,0.00022162,2]
[311744968,1705374640435,-500.0,0.00022162,2]
[311744970,1705374640445,-500.0,0.00022162,2]
[311744972,1705374640455,-592.6,0.00022162,2]
[311744974,1705374640464,-506.26,0.00022162,2]
[311744976,1705374640473,-500.0,0.00022162,2]
[311744978,1705374640482,-500.0,0.00022162,2]
[311744980,1705374640491,-500.0,0.00022162,2]
[311744982,1705374640500,-500.0,0.00022162,2]
[311744984,1705374640509,-500.0,0.00022162,2]
[311744986,1705374640518,-631.8,0.00022162,2]
[311744988,1705374640527,-500.0,0.00022162,2]
[311744990,1705374640536,-500.0,0.00022162,2]
[311744992,1705374640546,-500.0,0.00022162,2]
[311744994,1705374640555,-500.0,0.00022162,2]
[311744996,1705374640564,-500.0,0.00022162,2]
[311744998,1705374640573,-500.0,0.00022162,2]
[311745000,1705374640583,-638.92,0.00022162,2]
[311745002,1705374640592,-500.0,0.00022162,2]
[311745004,1705374640601,-533.47,0.00022162,2]
[311745006,1705374640610,-500.0,0.00022162,2]
[311745008,1705374640620,-245.27507307,0.00022162,2]
[311745010,1705374640629,-1418.77,0.00022162,2]
[311745012,1705374640638,-500.0,0.00022162,2]
[311745014,1705374640647,-500.0,0.00022162,2]
[311745016,1705374640656,-630.63,0.00022162,2]
[311745018,1705374640666,-1160.98,0.00022162,2]
[311745020,1705374640676,-500.0,0.00022162,2]
[311745022,1705374640685,-500.0,0.00022162,2]
[311745024,1705374640694,-1096.97,0.00022162,2]
[311745026,1705374640703,-500.0,0.00022162,2]
[311745028,1705374640713,-561.86,0.00022162,2]
[311745030,1705374640721,-500.0,0.00022162,2]
[311745032,1705374640730,-708.19,0.00022162,2]
[311745034,1705374640740,-591.37,0.00022162,2]
[311745036,1705374640749,-500.0,0.00022162,2]
[311745038,1705374640759,-1376.7,0.00022162,2]
[311745040,1705374640769,-500.0,0.00022162,2]
[311745042,1705374640778,-3369.29,0.00022162,2]
[311745044,1705374640788,-500.0,0.00022162,2]
[311745046,1705374640797,-1080.58,0.00022162,2]
[311745048,1705374640807,-510.69,0.00022162,2]
[311745050,1705374640816,-500.0,0.00022162,2]
[311745052,1705374640825,-500.0,0.00022162,2]